Cogmind - Beta 17.1 @@@ ROGUE MODE // 2026.09.06 @ 15:56:34 Player: Kamyk Result: Destroyed by G-47 Trooper with Particle Gun Performance ------------- Evolutions (0) 0 Regions Visited (2) 400 Robots Destroyed (7) 35 Value Destroyed (110) 110 Prototype IDs (2) 40 Alien Tech Used (0) 0 Bonus (0) 0 TOTAL SCORE: 585 Bonus ------- None Cogmind --------- Core Integrity 0/250 Matter 270/300 Energy 100/100 System Corruption 0% Temperature Cool (9) Movement Treading (160) Location -10/Mines Parts ------- > --- POWER (1) -------- (None) > --- PROPULSION (2) --- Light Treads > --- UTILITY (2) ------ (None) > --- WEAPON (2) ------- (None) > --- INVENTORY (5) ---- Wheel Wheel Mining Laser Peak State ------------ > --- POWER ------------ Light Ion Engine > --- PROPULSION ------- Light Treads Light Treads > --- UTILITY ---------- Terrain Scanner Targeting Computer > --- WEAPON ----------- EM Pulse Gun Grenade Launcher > --- INVENTORY -------- Wheel Wheel [Rating: 7] Favorites ----------- Power Ion Engine Engine Ion Engine Propulsion Light Treads Treads Light Treads Leg Aluminum Leg Utility Targeting Computer Device Terrain Scanner Processor Targeting Computer Weapon EM Pulse Gun Energy Gun EM Pulse Gun Launcher Grenade Launcher Special Weapon Mining Laser Build | -11 -10 -10 ------- Run | Yrd Mat Min Slots Evolved . | . . . Power . | . . . Propulsion . | . . . Utility . | . . . Weapon . | . . . Parts Attached 12 | 3 9 . Power 2 | 1 1 . Engine 2 | 1 1 . Core . | . . . Reactor . | . . . Propulsion 4 | 2 2 . Treads 2 | . 2 . Leg 2 | 2 . . Wheel . | . . . Hover . | . . . Flight . | . . . Utility 2 | . 2 . Device 1 | . 1 . Storage . | . . . Processor 1 | . 1 . Hackware . | . . . Protection . | . . . Artifact . | . . . Weapon 4 | . 4 . Energy Gun 1 | . 1 . Energy Cannon . | . . . Ballistic Gun . | . . . Ballistic Cannon . | . . . Launcher 1 | . 1 . Special Weapon 2 | . 2 . Impact Weapon . | . . . Slashing Weapon . | . . . Piercing Weapon . | . . . Special Melee Weapon . | . . . Unidentified Prototypes . | . . . Parts Lost 8 | . 3 5 Power 2 | . 1 1 Propulsion 1 | . . 1 Utility 2 | . 1 1 Weapon 3 | . 1 2 Highest Loss Streak 3 | . 2 3 To Critical Strikes . | . . . Average Backups 3 | 3 3 3 Power . | . . . Propulsion 2 | 3 3 2 Utility . | . . . Weapon . | . . 1 Tool/Special . | . . . Unused Backups 2 | . . 2 Power . | . . . Propulsion 2 | . . 2 Utility . | . . . Weapon . | . . . Tool/Special . | . . . Average Slot Usage (%) 75 | . 79 65 Engine 13 | . 13 12 Treads 14 | . 10 26 Leg 13 | . 17 . Device 7 | . 5 12 Processor 7 | . 9 . Energy Gun 9 | . 13 . Launcher 6 | . 8 . Special Weapon 3 | . . 12 Peak Build Rating 7 | 3 7 6 Average Rating 5 | 2 5 4 On Entrance 3 | . 3 6 Avg Prop Armor Cover (%) . | . . . Naked Turns . | . . . Heaviest Build 10 | 5 10 4 Greatest Support 40 | 20 40 40 Greatest Overweight (x) 1 | 1 . . Average Overweight (x) . | . . . Largest Inventory Capacity 5 | 5 5 5 Average Capacity 5 | 5 5 5 Most Carried 5 | 5 5 3 Average Carried 3 | 4 3 3 Final Capacity 5 | 5 5 5 Final Carried 5 | 5 3 3 Class Distribution -------------------- 100% | Mutant Dominant Class ---------------- Mutant | -10/Materials Mutant | -10/Mines Resources | -11 -10 -10 ----------- Run | Yrd Mat Min Matter Collected 249 | 230 19 . Remotely . | . . . Salvage Created 79 | . 79 . Parts 12 | . 12 . Haulers Intercepted . | . . . Recyclers Shooed . | . . . Parts Field Recycled . | . . . Retrieved Matter . | . . . Parts Self-Destructed . | . . . Prevented . | . . . Parts Restored . | . . . Kills | -11 -10 -10 ------- Run | Yrd Mat Min Combat Hostiles Destroyed 4 | . 4 . Melee 1 | . 1 . Guns 2 | . 2 . AOE 1 | . 1 . Classes Destroyed 4 | . 4 . Builder 2 | . 2 . Watcher 1 | . 1 . Swarmer 3 | . 3 . Grunt 1 | . 1 . Best Kill Streak 6 | . 6 . Combat Bots Only 3 | . 3 . Max Kills in Single Turn 2 | . 2 . Gunslinging . | . . . Exploded 1 | . 1 . Melee 1 | . 1 . Uniques/NPCs Destroyed . | . . . Combat | -11 -10 -10 -------- Run | Yrd Mat Min Hostile Shots Fired 105 | . 54 51 Missed 33 | . 20 13 Hits 72 | . 34 38 Projectile 72 | . 34 38 Damage Taken 904 | . 398 506 Core 258 | . 111 147 Absorbed by Shields . | . . . Core Remaining (%) 100 | 100 . . Volleys Fired 13 | . 13 . Largest 2 | . 2 . Hottest 70 | . 70 . Shots Fired 18 | . 18 . Gun 13 | . 13 . Cannon . | . . . Launcher 5 | . 5 . Special . | . . . Kinetic . | . . . Thermal . | . . . Explosive 5 | . 5 . Electromagnetic 13 | . 13 . Robot Hit Streak 5 | . 5 . Robot Miss Streak 2 | . 2 . Penetration Max . | . . . Secondary Targets . | . . . Shots Hit Robots 9 | . 9 . Core Hits 12 | . 8 4 Critical Kills . | . . . Critical Parts Destroyed . | . . . Critical Strikes . | . . . Melee Attacks . | . . . Impact . | . . . Slashing . | . . . Piercing . | . . . Sneak Attacks . | . . . Combat Hostiles . | . . . Follow-up Attacks . | . . . Damage Inflicted 447 | . 442 5 Guns 122 | . 122 . Cannons . | . . . Explosions 306 | . 306 . Melee . | . . . Ramming 19 | . 14 5 Kinetic . | . . . Thermal . | . . . Explosive 306 | . 306 . Electromagnetic 122 | . 122 . Impact . | . . . Slashing . | . . . Piercing . | . . . Highest Corruption . | . . . Average Corruption . | . . . Corruption Purged . | . . . Corruption Blocked . | . . . Overload Shots . | . . . Overflow Damage 14 | . 14 . Projectiles . | . . . Explosions 14 | . 14 . Melee . | . . . Knockbacks . | . . . Impact . | . . . Kinetic . | . . . Secondary . | . . . Self-Inflicted Damage 8 | . 8 . Shots . | . . . Rammed 19 | . 11 8 Targets Rammed 20 | . 12 8 Kicked . | . . . Crushed 1 | . 1 . Highest Temperature 18 | . 18 . Average Temperature 9 | . 9 . Received Heat Transfer 417 | . 132 285 Siege Activations . | . . . Martial Activations . | . . . Shielding Activations . | . . . Robots Disrupted . | . . . Combat Hostiles . | . . . Robots Corrupted . | . . . Combat Hostiles . | . . . Parts Fried 1 | . 1 . Impact Corruptions . | . . . Robots Melted . | . . . Combat Hostiles . | . . . Parts Melted . | . . . Heat Transferred . | . . . Parts Sabotaged . | . . . Parts Stolen . | . . . Parts Stripped . | . . . Power Chain Reactions . | . . . Alert | -11 -10 -10 ------- Run | Yrd Mat Min Maximum Alert Level . | . . . Low Security (%) 100 | 100 100 100 Level 1 . | . . . Level 2 . | . . . Level 3 . | . . . Level 4 . | . . . Level 5 . | . . . High Security . | . . . Max Security . | . . . Peak Influence 125 | . 125 15 Initial 10 | . . 10 Average 20 | . 29 1 Influence Increases 210 | . 180 30 Destroy 0b10 Robot/C 80 | . 80 . Destroy 0b10 Robot/NC 15 | . 15 . Destroy Leader 22 | . 22 . Successful Hack 6 | . 6 . Disable Machine 30 | . 30 . Destroy Structure 27 | . 27 . Lose Combat Pursuer 30 | . . 30 Influence Decreases 210 | . 153 57 Entered New Map 17 | . . 17 Time Decay 138 | . 123 15 Lost Part 55 | . 30 25 Squads Dispatched 1 | . 1 . Investigation . | . . . Extermination . | . . . Reinforcement 1 | . 1 . Assault . | . . . Garrison . | . . . Intercept . | . . . Searches Triggered . | . . . Construction Impeded . | . . . Haulers Reinforced . | . . . Active Scanning Responses . | . . . Cargo Convoy Interrupts . | . . . Stealth | -11 -10 -10 --------- Run | Yrd Mat Min Distress Signals 1 | . 1 . Communications Jammed . | . . . Distress Signals . | . . . Times Spotted 13 | . 9 4 Peak Tracking Total 5 | . 5 2 Tactical Retreats 1 | . . 1 Traps | -11 -10 -10 ------- Run | Yrd Mat Min Traps Triggered 1 | . 1 . Indirectly . | . . . Trap Hack Attempts . | . . . Triggered . | . . . Disarmed . | . . . Reprogrammed . | . . . Reused . | . . . Traps Extracted . | . . . Installed . | . . . Triggered . | . . . Machines | -11 -10 -10 ---------- Run | Yrd Mat Min Machines Disabled 2 | . 2 . Max in Single Turn 1 | . 1 . Machines Repaired . | . . . Machines Dismantled . | . . . Machines Sabotaged . | . . . Overloaded Fab Kills . | . . . Hacking | -11 -10 -10 --------- Run | Yrd Mat Min Machines Accessed 3 | . 3 . Terminals 2 | . 2 . Fabricators . | . . . Repair Stations 1 | . 1 . Recycling Units . | . . . Scanalyzers . | . . . Garrison Access . | . . . Total Hacks 3 | . 3 . Successful 2 | . 2 . Failed 1 | . 1 . Catastrophic . | . . . Database Lockouts . | . . . Manual . | . . . Terminals 2 | . 2 . Fabricators . | . . . Repair Stations 1 | . 1 . Recycling Units . | . . . Scanalyzers . | . . . Garrison Access . | . . . Terminal Hacks 1 | . 1 . Prototype ID Bank 1 | . 1 . Fabricator Hacks . | . . . Repair Station Hacks 1 | . 1 . Refit 1 | . 1 . Recycling Unit Hacks . | . . . Scanalyzer . | . . . Garrison Access Hacks . | . . . Unauthorized Hacks . | . . . Terminals . | . . . Fabricators . | . . . Repair Stations . | . . . Recycling Units . | . . . Scanalyzers . | . . . Garrison Access . | . . . Data Cores Recovered . | . . . Used . | . . . Hacking Detections 1 | . 1 . Full Trace Events . | . . . Feedback Events . | . . . Feedback Blocked . | . . . Robot Schematics Acquired . | . . . Robots Built . | . . . Authchips . | . . . Time . | . . . Total Robot Build Rating . | . . . Part Schematics Acquired . | . . . Parts Built . | . . . Authchips . | . . . Time . | . . . Total Part Build Rating . | . . . Part Studies Acquired . | . . . Parts Repaired . | . . . Time . | . . . Parts Recycled . | . . . Recycled Matter . | . . . Retrieved Matter . | . . . Retrieved Components . | . . . Parts Scanalyzed . | . . . Part Schematics Acquired . | . . . Parts Damaged . | . . . Bothacking | -11 -10 -10 ------------ Run | Yrd Mat Min Used RIF Installer . | . . . Robots Hacked . | . . . Non-combat . | . . . Combat . | . . . Robot Hacks Applied . | . . . Relay Couplers Released . | . . . Fabnet Peak Effective % . | . . . Robots Rewired . | . . . Allies Hacked . | . . . Hacks Repelled . | . . . Allies | -11 -10 -10 -------- Run | Yrd Mat Min Total Allies . | . . . Largest Group . | . . . Highest-Rated Group . | . . . Highest-Rated Ally . | . . . Total Orders . | . . . Ally Attacks . | . . . Total Damage . | . . . Kills . | . . . Allies Corrupted . | . . . Allies Melted . | . . . Intel | -11 -10 -10 ------- Run | Yrd Mat Min Active Infowar (turns) 452 | . 244 208 Terrain 452 | . 244 208 Robot Analysis Total . | . . . Derelict Logs Recovered . | . . . Drone Launches . | . . . Drone Recoveries . | . . . Exploration | -11 -10 -10 ------------- Run | Yrd Mat Min Turns Passed 939 | 65 652 222 Spaces Moved 622 | 57 434 131 Core 26 | 26 . . Treads 267 | . 136 131 Legs 329 | 31 298 . Wheels . | . . . Hover . | . . . Flight . | . . . Fastest Speed 50 | 50 120 160 Average Speed 134 | 95 132 160 Slowest Speed 160 | 120 160 160 Overloaded Moves . | . . . Propulsion Burnouts . | . . . Robots Hopped . | . . . Potential Cave-ins . | . . . Cave-ins Triggered . | . . . Exploration Rate (%) 32 | 3 66 29 Regions Visited 2 Branch Regions 1 Pre-discovered Areas . | . . . Known Exits Taken . | . . . Unknown Exits Taken 2 | 1 1 . Scrap Searched . | . . . Spaces Dug . | . . . Terrain Destroyed 26 | . 26 . Melee . | . . . Projectile . | . . . AOE 26 | . 26 . Terrain Rammed 1 | . 1 . Walls Destroyed . | . . . Machines Disabled . | . . . Actions | -11 -10 -10 --------- Run | Yrd Mat Min Total 693 | 67 487 139 Wait 8 | . 8 . Move 620 | 56 433 131 Hop . | . . . Pick Up 13 | 8 5 . Fast Attach 3 | . 3 . Attach 10 | 3 7 . Detach . | . . . Swap . | . . . Drop 5 | . 5 . Fire 13 | . 13 . Melee . | . . . Ram 1 | . 1 . Kick . | . . . Crush 20 | . 12 8 Escape Stasis . | . . . Rewire . | . . . Trap . | . . . Miscellaneous . | . . . Route ------- -11/Scrapyard -10/Materials (discovered 3 exits: [*Mat x2] / [*Min]) -10/Mines History --------- Turn | Location | Event 7 | -11/Scrapyard | Discovered new exit (range 15) 66 | -11/Scrapyard | Entered Materials 147 | -10/Materials | Discovered new exit (range 5) 211 | -10/Materials | Discovered new exit (range 13) 259 | -10/Materials | Discovered new exit (range 12) 317 | -10/Materials | Build established: Mutant 718 | -10/Materials | Entered Mines 719 | -10/Mines | Assembled infested the area 795 | -10/Mines | Core integrity fell below 50% 935 | -10/Mines | Core integrity fell below 20% 940 | -10/Mines | Destroyed by G-47 Trooper with Particle Gun Last Messages --------------- Dropped EM Pulse Gun. LOCATION=UNKNOWN GOAL=ESCAPE Something is scanning the area. ALERT: Infestation in the mines, dispatching Demolisher response squad. K-01 Serf collects debris. K-01 Serf cleans the Plasma Injector. K-01 Serf collects debris. K-01 Serf cleans the Plasma Injector. K-01 Serf collects debris. K-01 Serf cleans the Plasma Injector. Mining Laser destroyed. K-01 Serf cleans the Plasma Injector. K-01 Serf collects debris. Mining Laser destroyed. Backup Power I destroyed. Terrain Scanner destroyed. Slammed into G-47 Trooper. Lgt. Treads destroyed. Slammed into G-47 Trooper. Map ----- +----------------------------------------------------+ | ??## #???????? | | ???# """ """ """ """ #???????? | | ???# """ """ """ """ #???????? | | ??## """ """ """ """ #???????? | | ??## #???????? | | ???# """ """ """ """ ##??????? | | ???# """ """ """ """ #???????? | | ???# """ """ """ """ #???????? | | #??# #???????? | | ???# """ """ """ """ """ #?#??#??? | | ???# """ """ """ """ """ ##??????? | | ???# """ """ """ """ """ #???????? | | ???# #??#????? | | #?######## ##############???#???? | | ??????#??# #???#?#??????????#??#? | | ?????###?# #????????????????????? | | ????## ### #???????????????#????? | | ##### ## #?????#????#####???#?? | | # #???????#### ##?????? | | #### #??##?### #?????? | | ???# #???### #?????? | | #??# #???## #??????? | | ???## ##???# ##????#? | | ????# #########?# #?????? | | ???## #??## ###?# #???#?? | | ????# #??# #??## ###g@ ##????? | | ????# #?## #???# #?## ##???? | | ????# ### ##??# #??## g ##??? | | #???# ##?# ###?## #??? | | ????###### ### ##?# ##?? | | ?????????# ## #?# #?? | | ????????### #?# #?? | | ??????????#### ##?# #?? | | ?????????????## ##??# #?? | | ???????#??????## #???## ##?? | | ?????????#?????## #????####??? | | ????????????????## ##?????????#? | | ?????????????????#####???????????? | | ?????????????????????????????????? | | ?????????????????????????????????? | | ?????????????????????????????????? | | ?????????????????????????????????? | | | | | | | | | | | | | | | | | +----------------------------------------------------+ Best States ------------- Heat Dissipation 25 Energy Generation 10 Energy Capacity 250 Matter Stores 300 Matter Capacity 300 Sight Range 16 Terrain Scan Range 14 Terrain Scan Density 10 Evasion (%) 55 Targeting Accuracy 5 Recoil Reduction 2 Item Schematics ----------------- None Robot Schematics ------------------ None Fabricated ------------ Nothing Repaired ---------- Nothing Studied --------- None Alien Tech Used ----------------- None Achievements -------------- Fitting Room For Emergencies Only Challenges ------------ None Game ------ Seed PhaseEncryptedEngine Manual? 0 Play Time 00:17:03 Cumulative 1.2 hours Start 2026.09.06 @ 00:46:20 End 2026.09.06 @ 15:56:34 Sessions 5 Manual Loads 0 Difficulty Rogue Special Mode None Game No. 7 Rogue 7 Adventurer 0 Explorer 0 Win Type - Total 0 Types 0/0/0/0/0/0/0/0/0/0 Lore% 0 Gallery% 3 Achievement% 4 Wizard Run 0 Options --------- Layout 0 ASCII 0 Keyboard 0 Movement Mouse Keybinds 0 Fullscreen 2 Font 18/SmallcapsGlow Map View 76x50 Zoom Use 0% Tactical HUD 0 Map Filters NONE Filters NONE Steam 1 RUN: c95762e0-c160-4e7a-91e5-8768b680ad06